bitfinex/quotes_BTCUSD_20240823
["timestamp","ask_amount","ask_price","bid_price","bid_amount"]
[1724389471477,0.002,60981.0,60980.0,1.62724957]
[1724389471682,0.002,60981.0,60980.0,1.62624957]
[1724389471880,0.002,60981.0,60980.0,1.62724957]
[1724389473308,0.002,60981.0,60980.0,1.82471987]
[1724389476477,0.002,60981.0,60980.0,2.15269587]
[1724389477104,0.002,60981.0,60980.0,1.82471987]
[1724389477514,0.02771644,60981.0,60980.0,1.82471987]
[1724389477717,0.02771644,60981.0,60980.0,1.82171987]
[1724389477920,0.02771644,60981.0,60980.0,1.82271987]
[1724389478567,0.02771644,60981.0,60980.0,1.82471987]
[1724389479140,0.02771644,60981.0,60980.0,1.82271987]
[1724389479744,0.02771644,60981.0,60980.0,1.82471987]
[1724389479946,0.02771644,60981.0,60980.0,1.82171987]
[1724389480149,0.02771644,60981.0,60980.0,1.82271987]
[1724389480352,0.02771644,60981.0,60980.0,1.82471987]
[1724389481018,0.02771644,60981.0,60980.0,1.62924957]
[1724389482978,0.02771644,60981.0,60980.0,1.62424957]
[1724389483325,0.002,60981.0,60980.0,1.62424957]
[1724389484992,0.002,60981.0,60980.0,1.64996857]
[1724389486722,0.02771667,60981.0,60980.0,1.64996857]
[1724389491338,0.02771667,60981.0,60980.0,1.6425728]
[1724389491539,0.02771667,60981.0,60980.0,1.6435728]
[1724389492394,0.002,60981.0,60980.0,1.6435728]
[1724389494437,0.002,60981.0,60980.0,1.6455728]
[1724389494936,0.002,60981.0,60980.0,1.6425728]
[1724389495099,0.002,60981.0,60980.0,1.6435728]
[1724389495990,0.002,60981.0,60980.0,1.6425728]
[1724389496264,0.002,60981.0,60980.0,1.5475728]
[1724389501162,0.002,60981.0,60980.0,1.5505728]
[1724389506200,0.002,60981.0,60980.0,1.54094328]
[1724389506608,0.002,60981.0,60980.0,1.53794328]
[1724389508209,0.002,60981.0,60980.0,1.18696728]
[1724389509099,0.002824,60981.0,60980.0,1.18696728]
[1724389509590,0.002824,60981.0,60980.0,0.53101528]
[1724389509778,0.002824,60981.0,60980.0,0.21862728]
[1724389509982,0.002824,60981.0,60980.0,0.71059128]
[1724389510291,0.002824,60981.0,60980.0,0.35689628]
[1724389512609,0.002824,60981.0,60980.0,0.19290828]
[1724389513611,0.002824,60981.0,60980.0,0.35689628]
[1724389514422,0.002824,60981.0,60980.0,0.0289053]
[1724389514423,0.166809,60981.0,60980.0,0.0289053]
[1724389516110,0.002824,60981.0,60980.0,0.0289053]
[1724389516715,0.166809,60981.0,60980.0,0.0289053]
[1724389516919,0.002824,60981.0,60980.0,0.0289053]
[1724389517119,0.54395513,60981.0,60980.0,0.0289053]
[1724389517319,0.49478,60981.0,60980.0,0.0289053]
[1724389517726,0.002824,60981.0,60980.0,0.0289053]
[1724389519361,0.002824,60981.0,60980.0,0.1928933]
[1724389519566,0.002824,60981.0,60980.0,0.0289053]
[1724389520690,0.002824,60981.0,60980.0,0.1928933]
[1724389520926,0.002824,60981.0,60980.0,0.0289053]
[1724389521806,0.002824,60981.0,60980.0,0.1928933]
[1724389522892,0.002824,60981.0,60980.0,0.5208693]
[1724389523092,0.002824,60981.0,60980.0,0.1928933]
[1724389523697,0.002824,60981.0,60980.0,0.5208693]
[1724389523901,0.002824,60981.0,60980.0,0.1928933]
[1724389524310,0.002824,60981.0,60980.0,1.15724828]
[1724389524510,0.002824,60981.0,60980.0,1.70571127]
[1724389524910,0.002824,60981.0,60980.0,2.03368727]
[1724389525840,0.002824,60981.0,60980.0,2.46166327]
[1724389525986,0.000823,60984.0,60983.0,1.62102]
[1724389526186,0.000823,60984.0,60983.0,2.23598298]
[1724389526402,0.000823,60984.0,60983.0,1.90802298]
[1724389526603,0.000823,60984.0,60983.0,2.23598298]
[1724389527596,0.000823,60984.0,60983.0,1.90802298]
[1724389528689,0.000823,60984.0,60983.0,1.92202298]
[1724389528855,0.000823,60984.0,60983.0,2.26398298]
[1724389529276,0.000823,60984.0,60983.0,1.92202298]
[1724389529607,0.000823,60984.0,60983.0,1.90802298]
[1724389529814,0.000823,60984.0,60983.0,1.93602298]
[1724389530227,0.000823,60984.0,60983.0,2.26498298]
[1724389530853,0.000823,60984.0,60983.0,1.93702298]
[1724389531462,0.000823,60984.0,60983.0,1.96977684]
[1724389531811,0.000823,60984.0,60983.0,2.29773684]
[1724389533145,0.000823,60984.0,60983.0,1.96977684]
[1724389533710,0.000823,60984.0,60983.0,2.29773684]
[1724389533969,0.000823,60984.0,60983.0,1.96977684]
[1724389534316,0.000823,60984.0,60983.0,2.29773684]
[1724389534499,0.000823,60984.0,60983.0,1.96977684]
[1724389535174,0.000823,60984.0,60983.0,2.29773684]
[1724389535326,0.000823,60984.0,60983.0,1.96977684]
[1724389536485,0.000823,60984.0,60983.0,2.0505114]
[1724389536675,0.000823,60984.0,60983.0,2.0495114]
[1724389538522,0.02653488,60984.0,60983.0,2.0495114]
[1724389541950,0.02653488,60984.0,60983.0,2.3774714]
[1724389542725,0.02653488,60984.0,60983.0,2.3784714]
[1724389543490,0.02653488,60984.0,60983.0,2.29773684]
[1724389543694,0.000823,60984.0,60983.0,2.0505114]
[1724389544309,0.000823,60984.0,60983.0,2.0495114]
[1724389545000,0.000823,60984.0,60983.0,2.3774714]
[1724389545200,0.000823,60984.0,60983.0,2.3784714]
[1724389546322,0.000823,60998.0,60997.0,1.69731256]
[1724389546586,0.000823,60998.0,60997.0,1.88431554]
[1724389546709,0.000823,60998.0,60997.0,1.90925275]
[1724389546903,0.02653319,60998.0,60997.0,1.90925275]
[1724389547716,0.02653319,60998.0,60997.0,1.92525275]
[1724389549188,0.02653319,60998.0,60997.0,1.93925275]
[1724389549745,0.02653319,60998.0,60997.0,1.99095675]
[1724389560705,0.02653319,60998.0,60997.0,1.41623819]
[1724389560902,0.02653319,60998.0,60997.0,1.49697275]
[1724389561328,0.02653319,60998.0,60997.0,1.49997275]
[1724389561787,0.02653319,60998.0,60997.0,1.51537943]
[1724389562235,0.02653319,60998.0,60997.0,1.48937943]
[1724389562461,0.02653319,60998.0,60997.0,1.49237943]
[1724389563510,0.02653319,60998.0,60997.0,1.65247943]
[1724389564192,0.02153319,60998.0,60997.0,1.65247943]
[1724389565065,0.02153319,60998.0,60997.0,1.98036343]
[1724389568766,0.02153319,60998.0,60997.0,2.08036343]
[1724389569197,0.02153319,60998.0,60997.0,1.75247943]
[1724389569423,0.02235619,60998.0,60997.0,1.75247943]
[1724389570002,0.02235619,60998.0,60997.0,1.49237943]
[1724389570977,0.02235619,60998.0,60997.0,1.48937943]
[1724389571220,0.07315619,60998.0,60997.0,1.48937943]
[1724389571776,0.07315619,60998.0,60997.0,1.10979143]
[1724389571982,0.07315619,60998.0,60997.0,1.10454969]
[1724389572820,0.07315619,60998.0,60997.0,1.02381513]
[1724389573597,0.07315619,60998.0,60997.0,0.53192815]
[1724389574658,0.07315619,60998.0,60997.0,0.04010215]
[1724389574860,0.07315619,60998.0,60997.0,0.20404415]
[1724389575878,0.07315619,60998.0,60997.0,0.19004415]
[1724389576220,0.07315619,60998.0,60997.0,0.18040116]
[1724389576427,0.07315619,60998.0,60997.0,0.17240116]
[1724389576630,0.07315619,60998.0,60997.0,0.17940116]
[1724389576965,0.07315619,60998.0,60997.0,0.01545916]
[1724389577367,0.07315619,60998.0,60997.0,0.02345916]
[1724389577561,0.61414453,60998.0,60997.0,0.02345916]
[1724389577891,0.6596297,60998.0,60997.0,0.007]
[1724389578276,0.6596297,60998.0,60997.0,0.014]
[1724389578466,0.58587419,60998.0,60997.0,0.014]
[1724389578668,0.58587419,60998.0,60997.0,0.007]
[1724389579079,0.58587419,60998.0,60997.0,0.01]
[1724389579280,0.65957891,60998.0,60997.0,0.003]
[1724389579740,0.65957891,60998.0,60997.0,0.006]
[1724389579741,0.98745791,60998.0,60997.0,0.006]
[1724389579895,0.91375319,60998.0,60997.0,0.006]
[1724389580306,1.24163219,60998.0,60997.0,0.006]
[1724389580593,0.91375319,60998.0,60997.0,0.006]
[1724389580929,0.16396,60991.0,60985.0,0.163973]
[1724389581128,0.235661,60990.0,60985.0,0.163973]
[1724389581363,0.235661,60990.0,60982.0,0.08073456]
[1724389581364,0.235661,60990.0,60986.0,0.00849337]
[1724389581573,0.0717,60990.0,60987.0,0.163968]
[1724389581785,0.0257176,60989.0,60984.0,0.0009053]
[1724389581998,0.0257176,60989.0,60988.0,0.00856021]
[1724389582221,0.0257176,60989.0,60985.0,0.163973]
[1724389582392,0.0257176,60989.0,60988.0,0.0085458]
[1724389582605,0.0257176,60989.0,60985.0,0.163973]
[1724389582809,0.0257176,60989.0,60985.0,0.164973]
[1724389583034,0.0257176,60989.0,60986.0,0.00854628]
[1724389583477,0.0257176,60989.0,60986.0,0.17251728]
[1724389584482,0.0257176,60989.0,60986.0,0.17451728]
[1724389584712,0.0257176,60989.0,60986.0,0.17551728]
[1724389585672,0.0257176,60989.0,60987.0,0.163968]
[1724389585866,0.0257176,60989.0,60986.0,0.01154628]
[1724389586107,0.0257176,60989.0,60988.0,0.0085458]
[1724389586310,0.1896806,60989.0,60987.0,0.00854604]
[1724389586459,0.1896806,60989.0,60988.0,0.0085458]
[1724389586672,0.1896806,60989.0,60986.0,0.003]
[1724389586871,0.163966,60988.0,60986.0,0.003]
[1724389587073,0.0257176,60989.0,60986.0,0.003]
[1724389587074,0.0508,60987.0,60986.0,0.003]
[1724389587317,0.542707,60987.0,60986.0,0.003]
[1724389587471,0.542707,60987.0,60986.0,0.002]
[1724389587672,0.163974,60985.0,60984.0,0.0009053]
[1724389588125,0.491923,60985.0,60984.0,0.0009053]
[1724389588319,0.163974,60985.0,60984.0,0.0009053]
[1724389588734,0.891572,60985.0,60984.0,0.0009053]
[1724389589510,0.563623,60985.0,60984.0,0.0069053]
[1724389589734,0.0466176,60989.0,60984.0,0.0129053]
[1724389589935,0.0466176,60989.0,60988.0,0.08073456]
[1724389590674,0.0466176,60989.0,60988.0,0.24470056]
[1724389590903,0.0257176,60989.0,60988.0,0.08073456]
[1724389591101,0.0257176,60989.0,60988.0,0.57263356]
[1724389591102,0.0277176,60989.0,60988.0,0.57263356]
[1724389591302,0.0277176,60989.0,60988.0,0.24470056]
[1724389591532,0.0277176,60989.0,60988.0,0.57263356]
[1724389591924,0.0277176,60989.0,60985.0,0.08073456]
[1724389592132,0.0277176,60989.0,60988.0,0.001]
[1724389592307,0.0257176,60989.0,60988.0,0.001]
[1724389592511,0.0257176,60989.0,60988.0,0.80240198]
[1724389592710,0.0257176,60989.0,60988.0,1.21106954]
[1724389593082,0.0257176,60989.0,60988.0,1.53700254]
[1724389593286,0.0277176,60989.0,60988.0,1.53900254]
[1724389593491,0.0277176,60989.0,60988.0,1.86693554]
[1724389593699,0.0277176,60989.0,60988.0,1.88993554]
[1724389593907,0.0277176,60989.0,60988.0,1.56400254]
[1724389594120,0.000823,60998.0,60997.0,1.55921256]
[1724389594342,0.000823,60998.0,60997.0,1.86401554]
[1724389594516,0.000823,60998.0,60997.0,2.10800883]
[1724389595287,0.000823,60998.0,60997.0,2.11884595]
[1724389595906,0.000823,60998.0,60997.0,2.13284595]
[1724389596504,0.000823,60998.0,60997.0,2.14684595]
[1724389596908,0.000823,60998.0,60997.0,2.13284595]
[1724389597228,0.000823,60998.0,60997.0,2.14684595]
[1724389597829,0.000823,60998.0,60997.0,2.11884595]
[1724389598235,0.000823,60998.0,60997.0,2.13284595]
[1724389598612,0.000823,60998.0,60997.0,2.11884595]
[1724389598820,0.000823,60998.0,60997.0,2.13284595]
[1724389599019,0.000823,60998.0,60997.0,2.13184595]
[1724389599246,0.000823,60998.0,60997.0,2.14584595]
[1724389599421,0.000823,60998.0,60997.0,2.13184595]
[1724389599841,0.000823,60998.0,60997.0,2.14584595]
[1724389600220,0.000823,60998.0,60997.0,2.13184595]
[1724389600437,0.000823,60998.0,60997.0,1.79496195]
[1724389601019,0.000823,60998.0,60997.0,1.78096195]
[1724389601277,0.000823,60998.0,60997.0,1.79496195]
[1724389602053,0.000823,60998.0,60997.0,1.78096195]
[1724389602243,0.000823,60998.0,60997.0,1.76696195]
[1724389602443,0.000823,60998.0,60997.0,1.79496195]
[1724389603257,0.000823,60998.0,60997.0,1.78096195]
[1724389603455,0.02653297,60998.0,60997.0,1.79496195]
[1724389604099,0.02653297,60998.0,60997.0,1.79154505]
[1724389604466,0.02653297,60998.0,60997.0,1.80407805]
[1724389604870,0.02653297,60998.0,60997.0,1.81807805]
[1724389611966,0.02653297,60998.0,60997.0,1.57527805]
[1724389613329,0.02653297,60998.0,60997.0,1.24739405]
[1724389616487,0.02653297,60998.0,60997.0,1.57627805]
[1724389616750,0.02653297,60998.0,60997.0,1.57527805]
[1724389616923,0.02653297,60998.0,60997.0,1.57827805]
[1724389617124,0.02653297,60998.0,60997.0,1.71637805]
[1724389617325,0.02653297,60998.0,60997.0,1.71937805]
[1724389618589,0.02653297,60998.0,60997.0,1.71637805]
[1724389619069,0.02653297,60998.0,60997.0,1.71737805]
[1724389619272,0.02653297,60998.0,60997.0,1.71637805]
[1724389619475,0.02653297,60998.0,60997.0,1.70895783]
[1724389619678,0.02653297,60998.0,60997.0,1.56785783]
[1724389622681,0.02653297,60998.0,60997.0,1.56885783]
[1724389624321,0.02653297,60998.0,60997.0,1.56785783]
[1724389624747,0.02653297,60998.0,60997.0,1.56885783]
[1724389624921,0.02653297,60998.0,60997.0,1.64925783]
[1724389626408,0.02653297,60998.0,60997.0,1.64825783]
[1724389626624,0.02653297,60998.0,60997.0,1.65125783]
[1724389629628,0.02653297,60998.0,60997.0,1.64825783]
[1724389631363,0.02653297,60998.0,60997.0,1.56785783]
[1724389631565,0.000823,60998.0,60997.0,1.56785783]
[1724389633757,0.000823,60998.0,60997.0,1.23997383]
[1724389634587,0.000823,60998.0,60997.0,0.028]
[1724389634853,0.164762,60998.0,60997.0,0.028]
[1724389635074,0.215562,60998.0,60997.0,0.028]
[1724389635275,0.543441,60998.0,60997.0,0.028]
[1724389635862,0.64114631,60998.0,60997.0,0.028]
[1724389636054,0.91992,60998.0,60997.0,0.028]
[1724389636257,1.04379183,60998.0,60997.0,0.028]
[1724389636497,1.07097463,60998.0,60997.0,0.028]
[1724389636700,1.30069827,60998.0,60997.0,0.028]
[1724389637013,0.97281927,60998.0,60997.0,0.014]
[1724389637272,1.27351547,60998.0,60997.0,0.014]
[1724389637650,1.37451547,60998.0,60997.0,0.014]
[1724389637852,0.163961,60990.0,60988.0,0.0009053]
[1724389638007,0.263361,60990.0,60988.0,0.0009053]
[1724389638610,0.28908032,60990.0,60988.0,0.0009053]
[1724389638812,0.61700232,60990.0,60988.0,0.0009053]
[1724389639008,0.61800232,60990.0,60988.0,0.0009053]
[1724389639400,0.61900232,60990.0,60988.0,0.0009053]
[1724389640217,0.94692432,60990.0,60988.0,0.0009053]
[1724389640960,1.27484632,60990.0,60988.0,0.0009053]
[1724389641092,1.5408493,60990.0,60988.0,0.0009053]
[1724389641293,1.8687713,60990.0,60988.0,0.0009053]
[1724389642098,1.8667713,60990.0,60988.0,0.0009053]
[1724389642323,1.8677713,60990.0,60989.0,0.0019053]
[1724389642528,2.03275008,60990.0,60989.0,0.0029053]
[1724389642908,2.05575008,60990.0,60989.0,0.0029053]
[1724389643279,1.8917713,60990.0,60989.0,0.0029053]
[1724389643961,1.8907713,60990.0,60989.0,0.0019053]
[1724389644087,1.89694161,60990.0,60989.0,0.0009053]
[1724389644492,1.89994161,60990.0,60989.0,0.0029053]
[1724389644768,2.06392039,60990.0,60989.0,0.0029053]
[1724389644983,2.06292039,60990.0,60989.0,0.0019053]
[1724389645318,2.06492039,60990.0,60989.0,0.0029053]
[1724389645532,2.18733927,60990.0,60989.0,0.0029053]
[1724389646480,2.16282368,60990.0,60989.0,0.0029053]
[1724389647419,2.06492039,60990.0,60989.0,0.0029053]
[1724389648382,1.97432441,60990.0,60989.0,0.0029053]
[1724389648757,1.95132441,60990.0,60989.0,0.0029053]
[1724389648931,1.62340241,60990.0,60989.0,0.0029053]
[1724389649131,1.62340215,60990.0,60989.0,0.0029053]
[1724389649536,1.55001961,60990.0,60989.0,0.0029053]
[1724389650238,1.54801961,60990.0,60989.0,0.0019053]
[1724389650445,1.59491924,60990.0,60989.0,0.0009053]
[1724389650647,1.59491924,60990.0,60989.0,0.0029053]
[1724389650648,1.59791924,60990.0,60989.0,0.0029053]
[1724389651226,1.59691924,60990.0,60989.0,0.0019053]
[1724389651580,1.54901961,60990.0,60989.0,0.0029053]
[1724389651731,1.5418493,60990.0,60989.0,0.0029053]
[1724389653184,1.5398493,60990.0,60989.0,0.0019053]
[1724389653388,1.5378493,60990.0,60989.0,0.0009053]
[1724389653593,1.1115273,60990.0,60989.0,0.0019053]
[1724389653795,1.1125273,60990.0,60989.0,0.0029053]
[1724389654320,0.94552432,60990.0,60989.0,0.0009053]
[1724389654460,0.94652432,60990.0,60989.0,0.0019053]
[1724389654662,0.94652432,60990.0,60989.0,0.0029053]
[1724389654870,0.94852432,60990.0,60989.0,0.0029053]
[1724389655234,0.94752432,60990.0,60989.0,0.0019053]
[1724389655437,0.94852432,60990.0,60989.0,0.0029053]
[1724389658025,0.94852432,60990.0,60989.0,0.00187474]
[1724389658814,1.05899594,60990.0,60989.0,0.00187474]
[1724389659223,0.94852432,60990.0,60989.0,0.00187474]
[1724389659648,1.4424493,60990.0,60989.0,0.00187474]
[1724389660099,1.4932493,60990.0,60989.0,0.00187474]
[1724389660727,1.5418493,60990.0,60989.0,0.00187474]
[1724389661919,1.5398493,60990.0,60989.0,0.00187474]
[1724389662085,1.4404493,60990.0,60989.0,0.00187474]
[1724389663519,1.60024102,60990.0,60989.0,0.00187474]
[1724389663734,1.60224102,60990.0,60989.0,0.00187474]
[1724389663937,1.65304102,60990.0,60989.0,0.00187474]
[1724389664612,1.70164102,60990.0,60989.0,0.00187474]
[1724389665128,2.10288723,60990.0,60989.0,0.00187474]
[1724389665543,1.77496523,60990.0,60989.0,0.00278004]
[1724389666090,1.77578823,60990.0,60989.0,0.00278004]
[1724389666817,2.10371023,60990.0,60989.0,0.00278004]
[1724389667158,1.77578823,60990.0,60989.0,0.00278004]
[1724389667366,2.10371023,60990.0,60989.0,0.00278004]
[1724389668075,2.10373666,60990.0,60989.0,0.00278004]
[1724389668825,2.12673666,60990.0,60989.0,0.00278004]
[1724389669024,2.15118687,60990.0,60989.0,0.00278004]
[1724389669541,2.05338602,60990.0,60989.0,0.00278004]
[1724389670059,2.05038602,60990.0,60989.0,0.0009053]
[1724389670425,2.05238602,60990.0,60989.0,0.0019053]
[1724389670622,2.05038602,60990.0,60989.0,0.0009053]
[1724389670826,2.05138602,60990.0,60989.0,0.0019053]
[1724389671078,2.05338602,60990.0,60989.0,0.0029053]
[1724389671504,2.17563709,60990.0,60989.0,0.0029053]
[1724389672454,1.5406723,60990.0,60989.0,0.0019053]
[1724389672654,1.4542723,60990.0,60989.0,0.0019053]
[1724389673232,1.4542723,60990.0,60989.0,0.0029053]
[1724389673433,1.5906146,60990.0,60989.0,0.0029053]
[1724389673641,1.5766146,60990.0,60989.0,0.0019053]
[1724389673854,1.74059338,60990.0,60989.0,0.0019053]
[1724389674058,1.76359338,60990.0,60989.0,0.0019053]
[1724389674265,1.64125108,60990.0,60989.0,0.0019053]
[1724389674470,2.06139621,60990.0,60989.0,0.0029053]
[1724389674827,1.73347421,60990.0,60989.0,0.0029053]
[1724389676069,2.06139621,60990.0,60989.0,0.0029053]
[1724389676270,1.73347421,60990.0,60989.0,0.0029053]
[1724389677239,2.06139621,60990.0,60989.0,0.0029053]
[1724389677438,2.20820698,60990.0,60989.0,0.0029053]
[1724389677685,2.25928071,60990.0,60989.0,0.0029053]
[1724389678462,2.11219621,60990.0,60989.0,0.0029053]
[1724389680481,2.16079621,60990.0,60989.0,0.0029053]
[1724389682414,2.48871821,60990.0,60989.0,0.0029053]
[1724389684113,1.99681743,60990.0,60989.0,0.0029053]
[1724389684695,2.02254524,60990.0,60989.0,0.0029053]
[1724389684978,3.27374524,60990.0,60989.0,0.0029053]
[1724389685783,3.60166724,60990.0,60989.0,0.0029053]
[1724389685987,3.27374524,60990.0,60989.0,0.0029053]
[1724389686221,3.43772402,60990.0,60989.0,0.0029053]
[1724389688606,3.27374524,60990.0,60989.0,0.0029053]
[1724389689028,3.84348067,60990.0,60989.0,0.0029053]
[1724389689229,3.76525754,60990.0,60989.0,0.0029053]
[1724389689452,3.60166724,60990.0,60989.0,0.0029053]
[1724389690942,1.84492211,60990.0,60989.0,0.0029053]
[1724389691147,2.08712402,60990.0,60989.0,0.0029053]
[1724389691560,0.165982,60982.0,60981.0,0.0009064]
[1724389691759,1.06413811,60982.0,60981.0,0.0009064]
[1724389691962,1.82006811,60982.0,60981.0,0.0009064]
[1724389692167,2.00704689,60982.0,60981.0,0.0009064]
[1724389692515,2.03277382,60982.0,60981.0,0.0009064]
[1724389692715,2.04277382,60982.0,60981.0,0.0019064]
[1724389692941,1.87879504,60982.0,60981.0,0.0019064]
[1724389693611,1.88979504,60982.0,60981.0,0.0029064]
[1724389694182,1.94059504,60982.0,60981.0,0.0029064]
[1724389699029,1.88979504,60982.0,60981.0,0.0029064]
[1724389699803,1.8972176,60982.0,60981.0,0.0029064]
[1724389700015,2.06119638,60982.0,60981.0,0.0029064]
[1724389706035,1.150066,60972.0,60971.0,0.0654]
[1724389706261,1.39229211,60972.0,60971.0,0.0654]
[1724389706420,1.49229211,60972.0,60971.0,0.0654]
[1724389706645,1.43979926,60972.0,60971.0,0.0654]
[1724389706850,1.51802239,60972.0,60971.0,0.0654]
[1724389707206,1.51802239,60972.0,60971.0,0.0664]
[1724389707207,1.6745663,60972.0,60971.0,0.0664]
[1724389707409,1.6735663,60972.0,60971.0,0.0664]
[1724389707676,0.18227419,60972.0,60971.0,0.0664]
[1724389707886,0.011,60972.0,60971.0,0.63695913]
[1724389708157,0.04917153,60982.0,60980.0,0.328976]
[1724389708364,0.000823,60984.0,60983.0,0.8866]
[1724389708781,0.000823,60984.0,60983.0,0.89863175]
[1724389708991,0.000823,60984.0,60983.0,0.97813175]
[1724389710020,0.000823,60984.0,60983.0,0.97513175]
[1724389710146,0.000823,60984.0,60983.0,0.97613175]
[1724389710358,0.001823,60984.0,60983.0,0.97713175]
[1724389710555,0.002823,60984.0,60983.0,0.99113175]
[1724389711158,0.002823,60984.0,60983.0,0.98813175]
[1724389711761,0.002823,60984.0,60983.0,0.66017175]
[1724389712000,0.002823,60984.0,60983.0,0.33221175]
[1724389712172,0.002823,60984.0,60983.0,0.16823175]
[1724389712849,0.1668,60984.0,60983.0,0.16823175]
[1724389713273,0.1658,60984.0,60983.0,0.15623175]
[1724389713619,0.1648,60984.0,60983.0,0.15523175]
[1724389713882,0.1658,60984.0,60983.0,0.15523175]
[1724389714100,0.1658,60984.0,60983.0,0.15823175]
[1724389714617,0.16540528,60984.0,60983.0,0.15523175]
[1724389714936,0.16540528,60984.0,60983.0,0.15823175]
[1724389714937,0.49335928,60984.0,60983.0,0.15823175]
[1724389715251,0.49335928,60984.0,60983.0,0.1482]
[1724389716074,0.49235928,60984.0,60983.0,0.1452]
[1724389716504,0.49235928,60984.0,60983.0,0.15691926]
[1724389716505,0.49335928,60984.0,60983.0,0.15691926]
[1724389716899,0.49335928,60984.0,60983.0,0.15491926]
[1724389717246,0.49335928,60984.0,60983.0,0.15691926]
[1724389717941,0.82131328,60984.0,60983.0,0.15691926]
[1724389718357,0.49335928,60984.0,60983.0,0.1472]
[1724389719524,0.51908073,60984.0,60983.0,0.1472]
[1724389719927,0.19112673,60984.0,60983.0,0.1472]
[1724389720155,0.19112673,60984.0,60983.0,0.15691926]
[1724389720365,0.02714973,60984.0,60983.0,0.15691926]
[1724389723396,0.00142828,60984.0,60983.0,0.15691926]
[1724389726121,0.16540528,60984.0,60983.0,0.15691926]
[1724389732931,0.00142828,60984.0,60983.0,0.15691926]
[1724389735836,0.16540528,60984.0,60983.0,0.15691926]
[1724389736022,0.00142828,60984.0,60983.0,0.15691926]
[1724389736390,0.02714874,60984.0,60983.0,0.15691926]
[1724389737167,0.19112574,60984.0,60983.0,0.15691926]
[1724389737946,0.02714874,60984.0,60983.0,0.15691926]
[1724389740225,0.02714874,60984.0,60983.0,0.15782456]
[1724389740766,0.00142828,60984.0,60983.0,0.15782456]
[1724389741560,0.16540528,60984.0,60983.0,0.01262456]
[1724389745189,0.82131328,60984.0,60983.0,0.01262456]
[1724389745394,0.163982,60982.0,60981.0,0.07858841]
[1724389745595,0.491947,60982.0,60981.0,0.07858841]
[1724389745771,0.491947,60982.0,60981.0,0.08672766]
[1724389746233,0.819912,60982.0,60981.0,0.08672766]
[1724389746383,0.491947,60982.0,60981.0,0.08672766]
[1724389746595,0.492947,60982.0,60981.0,0.09272766]
[1724389748623,0.492947,60982.0,60981.0,0.08458841]
[1724389748827,0.492947,60982.0,60981.0,0.09272766]
[1724389750806,1.148877,60982.0,60981.0,0.006]
[1724389751032,1.31210319,60982.0,60981.0,0.006]
[1724389751250,1.148877,60982.0,60981.0,0.006]
[1724389751451,1.19798241,60982.0,60981.0,0.006]
[1724389752057,1.19798241,60982.0,60981.0,0.0069053]
[1724389752310,1.22253511,60982.0,60981.0,0.0069053]
[1724389752508,1.22990715,60982.0,60981.0,0.0069053]
[1724389753091,1.22253511,60982.0,60981.0,0.0069053]
[1724389753291,1.27164052,60982.0,60981.0,0.0069053]
[1724389753915,0.94367552,60982.0,60981.0,0.0069053]
[1724389755568,0.94392005,60982.0,60981.0,0.0069053]
[1724389756175,0.28799005,60982.0,60981.0,0.0069053]
[1724389756351,0.26337992,60982.0,60981.0,0.0832053]
[1724389757501,0.59134492,60982.0,60981.0,0.0832053]
[1724389757634,0.492947,60982.0,60981.0,0.0832053]
[1724389758400,0.61595505,60982.0,60981.0,0.0832053]
[1724389758844,0.61595505,60982.0,60981.0,0.0069053]
[1724389762309,0.492947,60982.0,60981.0,0.0069053]
[1724389763117,0.61595505,60982.0,60981.0,0.0069053]
[1724389763327,0.492947,60982.0,60981.0,0.0069053]
[1724389764315,0.49377,60982.0,60981.0,0.0069053]
[1724389765507,0.9095536,60982.0,60981.0,0.0069053]
[1724389766170,1.48970298,60982.0,60981.0,0.0069053]
[1724389766385,1.70273476,60982.0,60981.0,0.0069053]
[1724389766531,1.55510298,60982.0,60981.0,0.0069053]
[1724389767240,1.55510298,60982.0,60981.0,0.0029053]
[1724389767444,1.56010298,60982.0,60981.0,0.0019053]
[1724389767645,1.72408176,60982.0,60981.0,0.0019053]
[1724389768062,1.72008176,60982.0,60981.0,0.0009053]
[1724389768269,1.72008176,60982.0,60981.0,0.0019053]
[1724389768473,1.42570298,60982.0,60981.0,0.0019053]
[1724389768674,1.42670298,60982.0,60981.0,0.0019053]
[1724389768946,1.56227164,60982.0,60981.0,0.0009053]
[1724389769082,1.06830443,60982.0,60981.0,0.0009053]
[1724389769291,1.00992468,60982.0,60981.0,0.0009053]
[1724389769994,1.65782444,60982.0,60981.0,0.0009053]
[1724389770269,1.65782444,60982.0,60981.0,0.0019053]
[1724389770270,1.94629387,60982.0,60981.0,0.0019053]
[1724389770571,1.80872444,60982.0,60981.0,0.0009053]
[1724389770759,1.79572444,60982.0,60981.0,0.0009053]
[1724389770915,1.80672444,60982.0,60981.0,0.0019053]
[1724389777141,1.9541566,60982.0,60981.0,0.0019053]
[1724389777554,1.80022482,60982.0,60981.0,0.0019053]
[1724389777976,1.72232482,60982.0,60981.0,0.0019053]
[1724389778228,1.66132482,60982.0,60981.0,0.0019053]
[1724389778782,1.58313514,60982.0,60981.0,0.0019053]
[1724389778959,1.66132482,60982.0,60981.0,0.0019053]
[1724389779344,1.66130912,60982.0,60981.0,0.0019053]
[1724389780241,1.51389266,60982.0,60981.0,0.0019053]
[1724389780702,1.66130912,60982.0,60981.0,0.0019053]
[1724389781340,1.8252879,60982.0,60981.0,0.0019053]
[1724389781545,2.49530144,60982.0,60981.0,0.0019053]
[1724389782226,2.49530144,60982.0,60981.0,0.0009053]
[1724389782227,2.47430144,60982.0,60981.0,0.0009053]
[1724389782637,2.50230144,60982.0,60981.0,0.0019053]
[1724389782929,2.48830144,60982.0,60981.0,0.0019053]
[1724389783230,2.48830144,60982.0,60981.0,0.0009053]
[1724389783448,2.50230144,60982.0,60981.0,0.0019053]
[1724389786100,3.75350144,60982.0,60981.0,0.0019053]
[1724389789166,3.58952266,60982.0,60981.0,0.0019053]
[1724389795093,2.33832266,60982.0,60981.0,0.0019053]
[1724389795463,2.66628766,60982.0,60981.0,0.0019053]
[1724389797983,3.91748766,60982.0,60981.0,0.0019053]
[1724389808860,3.77898766,60982.0,60981.0,0.0019053]
[1724389809095,3.94296644,60982.0,60981.0,0.0019053]
[1724389810446,3.77898766,60982.0,60981.0,0.0019053]
[1724389812540,3.61500566,60982.0,60981.0,0.0019053]
[1724389812748,3.77898766,60982.0,60981.0,0.0019053]
[1724389814496,3.77898766,60982.0,60981.0,0.0793053]
[1724389814874,3.77898766,60982.0,60981.0,0.06815299]
[1724389815107,1.80584,60981.0,60980.0,0.0618]
[1724389815326,0.494021,60973.0,60972.0,0.0009053]
[1724389815533,0.83621366,60973.0,60972.0,0.0009053]
[1724389815906,0.86194562,60973.0,60972.0,0.0627053]